bitfinex/quotes_BTCUSD_20251012
["timestamp","ask_amount","ask_price","bid_price","bid_amount"]
[1760266018581,0.51885888,111820.0,111810.0,0.07532678]
[1760266018791,0.53805636,111820.0,111810.0,0.07532678]
[1760266020477,0.53805636,111820.0,111810.0,0.04168678]
[1760266020685,0.53805636,111820.0,111810.0,0.07763678]
[1760266026718,0.53905636,111820.0,111810.0,0.07763678]
[1760266028014,0.36019748,111820.0,111810.0,0.25651165]
[1760266028245,0.001,111820.0,111810.0,0.25651165]
[1760266029316,0.17885888,111820.0,111810.0,0.25651165]
[1760266029733,0.17985888,111820.0,111810.0,0.25651165]
[1760266029947,0.17985888,111820.0,111810.0,0.07763678]
[1760266030192,0.17885888,111820.0,111810.0,0.07763678]
[1760266031050,0.17885888,111820.0,111810.0,0.25651165]
[1760266032962,0.17885888,111820.0,111810.0,0.07763678]
[1760266033167,0.17885888,111820.0,111810.0,0.25651165]
[1760266034694,0.17885888,111820.0,111810.0,0.07763678]
[1760266036055,0.17885888,111820.0,111810.0,0.25651165]
[1760266036276,0.17885888,111820.0,111810.0,0.07763678]
[1760266036882,0.17885888,111820.0,111810.0,0.25651165]
[1760266037319,0.17885888,111820.0,111810.0,0.07763678]
[1760266037736,0.17885888,111820.0,111810.0,0.04168678]
[1760266037944,0.51885888,111820.0,111810.0,0.04168678]
[1760266038161,4.10142229,111820.0,111810.0,0.00174678]
[1760266039227,4.12541914,111820.0,111810.0,1e-08]
[1760266039857,0.56204914,111820.0,111810.0,1e-08]
[1760266040064,4.14207689,111820.0,111810.0,1e-08]
[1760266040275,4.12641914,111820.0,111810.0,1e-08]
[1760266040488,4.21354206,111820.0,111810.0,1e-08]
[1760266040698,4.18954521,111820.0,111810.0,1e-08]
[1760266040910,4.27826455,111820.0,111810.0,1e-08]
[1760266041122,4.29426245,111820.0,111810.0,1e-08]
[1760266041337,4.20544766,111820.0,111810.0,1e-08]
[1760266041548,0.64107766,111820.0,111810.0,1e-08]
[1760266041760,4.20444766,111820.0,111810.0,1e-08]
[1760266041970,4.21947984,111820.0,111810.0,1e-08]
[1760266042181,4.21946226,111820.0,111810.0,1e-08]
[1760266042401,4.33910554,111820.0,111810.0,1e-08]
[1760266043252,0.77773554,111820.0,111810.0,1e-08]
[1760266043474,4.29320729,111820.0,111810.0,1e-08]
[1760266043902,4.33418159,111820.0,111810.0,1e-08]
[1760266044119,4.23143007,111820.0,111810.0,1e-08]
[1760266044327,4.26332402,111820.0,111810.0,1e-08]
[1760266045195,4.19042578,111820.0,111810.0,1e-08]
[1760266046113,0.62705578,111820.0,111810.0,1e-08]
[1760266046297,4.19042578,111820.0,111810.0,1e-08]
[1760266046737,4.27914512,111820.0,111810.0,1e-08]
[1760266047370,4.19042578,111820.0,111810.0,1e-08]
[1760266050026,3.80395924,111820.0,111810.0,0.02437001]
[1760266050249,3.78732081,111820.0,111810.0,0.04257001]
[1760266050456,3.78732081,111820.0,111810.0,1e-08]
[1760266050637,4.12732081,111820.0,111810.0,1e-08]
[1760266051297,3.78732081,111820.0,111810.0,1e-08]
[1760266051453,4.12732081,111820.0,111810.0,1e-08]
[1760266054406,4.12732081,111820.0,111810.0,0.02437001]
[1760266055056,4.12732081,111820.0,111810.0,0.04257001]
[1760266055270,4.10342229,111820.0,111810.0,0.04257001]
[1760266055536,4.12732081,111820.0,111810.0,0.04257001]
[1760266058074,0.56395081,111820.0,111810.0,0.07779001]
[1760266058314,0.54005229,111820.0,111810.0,0.07779001]
[1760266060924,0.20005229,111820.0,111810.0,0.27455236]
[1760266061110,0.18085888,111820.0,111810.0,0.25666488]
[1760266061307,0.2047574,111820.0,111810.0,0.25666488]
[1760266061507,0.18085888,111820.0,111810.0,0.25666488]
[1760266061712,0.02589852,111820.0,111810.0,0.25666488]
[1760266061919,0.002,111820.0,111810.0,0.25666488]
[1760266062075,0.09898561,111840.0,111830.0,0.17884288]
[1760266062076,0.02389852,111840.0,111830.0,0.17884288]
[1760266062275,0.04884535,111840.0,111830.0,0.25720288]
[1760266062483,0.03221413,111840.0,111830.0,0.25720288]
[1760266063249,0.04885155,111840.0,111830.0,0.25720288]
[1760266063469,0.04885151,111840.0,111830.0,0.25720288]
[1760266064279,0.03221413,111840.0,111830.0,0.28735478]
[1760266064468,0.05204569,111850.0,111840.0,0.17882689]
[1760266064691,0.0770113,111850.0,111840.0,0.23251689]
[1760266064827,0.0770113,111850.0,111840.0,0.25718689]
[1760266065562,0.07751122,111850.0,111840.0,0.25718689]
[1760266070180,0.05254561,111850.0,111840.0,0.25718689]
[1760266070807,0.00145825,111850.0,111840.0,0.25718689]
[1760266073453,0.18026915,111850.0,111840.0,0.25718689]
[1760266073865,0.18026915,111850.0,111840.0,0.29478689]
[1760266074052,0.18026915,111850.0,111840.0,0.11596]
[1760266074492,0.18026915,111850.0,111840.0,0.29478689]
[1760266076139,0.00145825,111850.0,111840.0,0.29478689]
[1760266077120,0.00145825,111850.0,111840.0,0.29378689]
[1760266078959,0.18026915,111850.0,111840.0,0.29378689]
[1760266079504,0.00145825,111850.0,111840.0,0.29378689]
[1760266081572,0.51878004,111870.0,111840.0,0.11496]
[1760266081778,0.51878004,111870.0,111840.0,0.25961117]
[1760266081779,0.1788109,111850.0,111840.0,0.25961117]
[1760266082425,0.1788109,111850.0,111840.0,0.29344117]
[1760266084963,0.1788109,111850.0,111840.0,0.11462004]
[1760266085183,0.1788109,111850.0,111840.0,0.29344693]
[1760266086283,0.1788109,111850.0,111840.0,0.11462004]
[1760266088903,0.1788109,111850.0,111840.0,0.38332004]
[1760266089827,0.5188109,111850.0,111840.0,0.38332004]
[1760266090086,0.5188109,111850.0,111840.0,0.34949004]
[1760266091087,0.28865948,111850.0,111840.0,0.34949004]
[1760266091288,0.46747038,111850.0,111840.0,0.34949004]
[1760266092368,0.4757769,111850.0,111840.0,0.34949004]
[1760266092577,0.4757769,111850.0,111840.0,0.30635004]
[1760266093199,0.4757769,111850.0,111840.0,0.32966004]
[1760266094041,0.4757769,111850.0,111840.0,0.34659004]
[1760266094469,0.4757769,111850.0,111840.0,0.30635004]
[1760266095313,0.4757769,111850.0,111840.0,0.32966004]
[1760266096162,0.18711742,111850.0,111840.0,0.38247004]
[1760266096661,0.18711742,111850.0,111840.0,0.11377004]
[1760266099420,0.18711742,111850.0,111840.0,0.29259693]
[1760266099678,0.18712769,111850.0,111840.0,0.11377004]
[1760266100744,0.18712769,111850.0,111840.0,0.31047961]
[1760266100950,0.18712769,111850.0,111840.0,0.29259693]
[1760266101136,0.18712769,111850.0,111840.0,0.11377004]
[1760266101414,0.18712769,111850.0,111840.0,0.31047961]
[1760266101621,0.18712769,111850.0,111840.0,0.29259693]
[1760266101831,0.18712769,111850.0,111840.0,0.11377004]
[1760266102034,0.18712769,111850.0,111840.0,0.13165272]
[1760266103067,0.18712769,111850.0,111840.0,0.31047961]
[1760266103286,0.18712769,111850.0,111840.0,0.29259693]
[1760266105821,0.18712769,111850.0,111840.0,0.56129693]
[1760266107603,0.00931679,111850.0,111840.0,0.56129693]
[1760266107815,0.001,111850.0,111840.0,0.29259693]
[1760266109323,0.18712941,111860.0,111850.0,0.1788109]
[1760266109749,0.18712941,111860.0,111850.0,0.07612]
[1760266109965,0.18712941,111860.0,111850.0,0.2549309]
[1760266110183,0.17879517,111860.0,111850.0,0.2549309]
[1760266110399,0.17879517,111860.0,111850.0,0.07612]
[1760266110615,0.18712779,111860.0,111850.0,0.07612]
[1760266111054,0.18712779,111860.0,111850.0,0.07412]
[1760266111265,0.17879517,111860.0,111850.0,0.07412]
[1760266112162,0.18771898,111870.0,111850.0,0.07412]
[1760266112367,0.19605432,111870.0,111860.0,0.01693]
[1760266112543,0.19605432,111870.0,111860.0,0.07612]
[1760266113987,0.1788109,111850.0,111840.0,0.09046004]
[1760266114186,0.18714624,111850.0,111840.0,0.11377004]
[1760266116140,0.1788109,111850.0,111840.0,0.11377004]
[1760266117966,4.2421809,111850.0,111840.0,0.03765004]
[1760266118200,4.22859589,111850.0,111840.0,5.004e-05]
[1760266118397,4.15654596,111850.0,111840.0,5.004e-05]
[1760266119172,0.59317596,111850.0,111840.0,5.004e-05]
[1760266119382,4.15654596,111850.0,111840.0,5.004e-05]
[1760266119614,0.02754375,111850.0,111840.0,0.07909004]
[1760266119823,0.01402414,111860.0,111850.0,0.1788109]
[1760266120028,0.00893894,111870.0,111850.0,0.2578509]
[1760266120362,0.17877893,111870.0,111860.0,0.07261949]
[1760266120562,0.17877893,111870.0,111860.0,0.07904]
[1760266121229,0.17877893,111870.0,111860.0,0.09691949]
[1760266121611,0.17877893,111870.0,111860.0,0.07904]
[1760266121986,0.18168906,111870.0,111860.0,0.07904]
[1760266123243,0.18168906,111870.0,111860.0,0.09691949]
[1760266123984,0.18168906,111870.0,111860.0,0.07904]
[1760266127274,0.18168906,111870.0,111860.0,0.09691949]
[1760266132832,0.18168906,111870.0,111860.0,0.27571441]
[1760266133035,0.18168906,111870.0,111860.0,0.25783492]
[1760266133235,0.18168906,111870.0,111860.0,0.07904]
[1760266136967,0.00291013,111870.0,111860.0,0.27571441]
[1760266137097,0.00291013,111870.0,111860.0,0.25783492]
[1760266140036,0.00291013,111870.0,111860.0,0.59783492]
[1760266142677,0.00291013,111870.0,111860.0,0.59883492]
[1760266145819,0.17874698,111890.0,111880.0,0.17876296]
[1760266146033,0.27342065,111900.0,111880.0,0.52252283]
[1760266146239,0.2593992,111900.0,111890.0,0.05342]
[1760266146453,0.18777558,111900.0,111890.0,0.07797]
[1760266147551,0.17874916,111910.0,111890.0,0.07797]
[1760266147779,0.51889914,111910.0,111890.0,0.11557]
[1760266148005,0.1876942,111900.0,111890.0,0.11557]
[1760266149553,0.53289246,111910.0,111890.0,0.31219167]
[1760266149766,0.53289246,111910.0,111900.0,0.01724]
[1760266149995,0.19289246,111910.0,111900.0,0.07615]
[1760266150209,0.19289246,111910.0,111900.0,0.254881]
[1760266150421,0.17887419,111910.0,111900.0,0.07615]
[1760266151519,3.74209421,111910.0,111900.0,0.07615]
[1760266151773,0.17872421,111910.0,111900.0,0.07615]
[1760266151987,0.18105079,111910.0,111900.0,0.07615]
[1760266154868,0.18105079,111910.0,111900.0,0.04125]
[1760266155091,0.18105079,111910.0,111900.0,0.07615]
[1760266155302,0.178731,111900.0,111890.0,0.08961]
[1760266155541,0.178731,111900.0,111890.0,0.11362]
[1760266157719,0.178731,111900.0,111890.0,0.29236698]
[1760266158591,0.19274214,111910.0,111890.0,0.29236698]
[1760266158821,0.178731,111900.0,111890.0,0.25746698]
[1760266159554,0.178731,111900.0,111890.0,0.29236698]
[1760266160442,0.178731,111900.0,111890.0,0.11362]
[1760266160881,0.18047609,111900.0,111890.0,0.29236698]
[1760266161315,0.18047609,111900.0,111890.0,0.11362]
[1760266162425,0.52047609,111900.0,111890.0,0.0376]
[1760266162648,4.10301859,111900.0,111890.0,0.06161]
[1760266162883,4.10301859,111900.0,111890.0,0.07885]
[1760266163112,0.00174509,111900.0,111890.0,0.29249698]
[1760266165531,0.18047609,111900.0,111890.0,0.29349698]
[1760266167531,0.00174509,111900.0,111890.0,0.29349698]
[1760266167948,0.18047609,111900.0,111890.0,0.29349698]
[1760266170094,0.00174509,111900.0,111890.0,0.29349698]
[1760266171550,0.00174509,111900.0,111890.0,0.29316319]
[1760266171763,0.00174509,111900.0,111890.0,0.63316319]
[1760266171977,0.02502202,111920.0,111910.0,0.17871503]
[1760266172185,0.25944201,111930.0,111920.0,0.17869907]
[1760266172446,0.28446598,111930.0,111920.0,0.25484907]
[1760266172649,0.02522397,111930.0,111920.0,0.25484907]
[1760266172870,0.20565146,111930.0,111920.0,0.25484907]
[1760266173303,0.02696836,111930.0,111920.0,0.25484907]
[1760266173509,0.01028571,111930.0,111920.0,0.25484907]
[1760266174138,0.02430024,111930.0,111920.0,0.25484907]
[1760266174342,0.01028571,111930.0,111920.0,0.25484907]
[1760266175264,0.00194439,111930.0,111920.0,0.25484907]
[1760266175878,0.18062749,111930.0,111920.0,0.25484907]
[1760266176083,0.18896881,111930.0,111920.0,0.07615]
[1760266176500,0.18896881,111930.0,111920.0,0.25484907]
[1760266177121,0.01028571,111930.0,111920.0,0.07615]
[1760266177326,0.18062749,111930.0,111920.0,0.27271897]
[1760266177530,0.20298342,111930.0,111920.0,0.25484907]
[1760266177733,0.18896881,111930.0,111920.0,0.25484907]
[1760266179077,0.18062749,111930.0,111920.0,0.25484907]
[1760266179691,0.00194439,111930.0,111920.0,0.25484907]
[1760266183034,0.18062749,111930.0,111920.0,0.25484907]
[1760266184256,0.18062749,111930.0,111920.0,0.07615]
[1760266184658,0.18894356,111930.0,111920.0,0.07615]
[1760266185219,0.18062749,111930.0,111920.0,0.07615]
[1760266185422,0.18062749,111930.0,111920.0,0.25484907]
[1760266186600,0.18062749,111930.0,111920.0,0.29240907]
[1760266187329,0.18062749,111930.0,111920.0,0.11371]
[1760266188386,0.18062749,111930.0,111920.0,0.29240907]
[1760266189799,0.18062749,111930.0,111920.0,0.11371]
[1760266190411,0.19464238,111930.0,111920.0,0.11371]
[1760266190640,0.18062749,111930.0,111920.0,0.11371]
[1760266191147,0.18062749,111930.0,111920.0,0.29240907]
[1760266191373,0.18062749,111930.0,111920.0,0.11371]
[1760266191579,0.18062749,111930.0,111920.0,0.29240907]
[1760266191793,0.18062749,111930.0,111920.0,0.11371]
[1760266192033,0.18062749,111930.0,111920.0,0.29240907]
[1760266192248,0.18062749,111930.0,111920.0,0.11371]
[1760266192450,0.18062749,111930.0,111920.0,0.29240907]
[1760266193921,0.00194439,111930.0,111920.0,0.29240907]
[1760266194134,0.18062749,111930.0,111920.0,0.29240907]
[1760266194558,0.00194439,111930.0,111920.0,0.29240907]
[1760266195402,0.18062749,111930.0,111920.0,0.29240907]
[1760266201780,0.18062749,111930.0,111920.0,0.11371]
[1760266202443,0.18062749,111930.0,111920.0,0.29240907]
[1760266205047,0.18062749,111930.0,111920.0,0.56110907]
[1760266205475,0.19464224,111930.0,111920.0,0.56110907]
[1760266206118,0.19178395,111930.0,111920.0,0.56110907]
[1760266206763,0.19178395,111930.0,111920.0,0.38241]
[1760266208047,0.19178395,111930.0,111920.0,0.56110907]
[1760266208682,0.19178395,111930.0,111920.0,0.38241]
[1760266208892,0.1786831,111930.0,111920.0,0.38241]
[1760266210458,0.1795431,111930.0,111920.0,0.34751]
[1760266210914,0.1786831,111930.0,111920.0,0.3832]
[1760266215201,0.19269852,111930.0,111920.0,0.3832]
[1760266216940,3.7420531,111930.0,111920.0,0.3832]
[1760266217147,0.1786831,111930.0,111920.0,0.3832]
[1760266217790,0.1795431,111930.0,111920.0,0.3832]
[1760266217999,0.1795431,111930.0,111920.0,0.34751]
[1760266218439,0.1795431,111930.0,111920.0,0.30626]
[1760266218440,4.0834531,111930.0,111920.0,0.30626]
[1760266218670,4.11099018,111930.0,111920.0,0.30626]
[1760266220421,4.10211511,111930.0,111920.0,0.30626]
[1760266220634,4.10211511,111930.0,111920.0,0.33087]
[1760266221943,4.10211511,111930.0,111920.0,0.30626]
[1760266222369,4.10265511,111930.0,111920.0,0.30626]
[1760266222597,4.11098863,111930.0,111920.0,0.30626]
[1760266222807,4.11098863,111930.0,111920.0,0.03756]
[1760266224369,4.10265511,111930.0,111920.0,0.03756]
[1760266225018,4.11098652,111930.0,111920.0,0.03756]
[1760266225227,4.11044652,111930.0,111920.0,0.03756]
[1760266225433,4.10211511,111930.0,111920.0,0.03756]
[1760266226935,4.10265511,111930.0,111920.0,0.03756]
[1760266229101,4.15540345,111930.0,111920.0,0.03756]
[1760266229315,4.18176722,111930.0,111920.0,0.03756]
[1760266230603,4.10211511,111930.0,111920.0,0.08052]
[1760266230813,4.10211511,111930.0,111920.0,0.11621]
[1760266231043,4.10125511,111930.0,111920.0,0.11621]
[1760266232191,0.53788511,111930.0,111920.0,0.11621]
[1760266232418,0.19788511,111930.0,111920.0,0.11621]
[1760266232596,0.1786831,111930.0,111920.0,0.11621]
[1760266233397,0.1786831,111930.0,111920.0,0.31277897]
[1760266233620,0.1786831,111930.0,111920.0,0.29490907]
[1760266234212,0.1786831,111930.0,111920.0,0.11621]
[1760266234213,0.192698,111930.0,111920.0,0.11621]
[1760266235262,0.192698,111930.0,111920.0,0.29490907]
[1760266240610,0.0140149,111930.0,111920.0,0.29490907]
[1760266240982,0.192698,111930.0,111920.0,0.29490907]
[1760266241186,0.0140149,111930.0,111920.0,0.29490907]
[1760266243034,0.192698,111930.0,111920.0,0.03756]
[1760266243238,0.192698,111930.0,111920.0,0.24991907]
[1760266245229,0.192698,111930.0,111920.0,0.28642907]
[1760266251625,0.0140149,111930.0,111920.0,0.55512907]
[1760266253999,0.26225142,111950.0,111920.0,0.51756907]
[1760266254213,3.7420374,111940.0,111930.0,0.01759]
[1760266254439,0.2025374,111940.0,111930.0,0.04229]
[1760266254642,0.2025374,111940.0,111930.0,0.0788]
[1760266257559,0.1786674,111940.0,111930.0,0.0788]
[1760266259143,0.2025374,111940.0,111930.0,0.0788]
[1760266259952,0.20311873,111940.0,111930.0,0.0788]
[1760266260932,0.17924847,111940.0,111930.0,0.2574831]
[1760266261617,0.17924847,111940.0,111930.0,0.5261831]
[1760266262774,0.17924847,111940.0,111930.0,0.3475]
[1760266263172,0.17924847,111940.0,111930.0,0.5261831]
[1760266264535,0.17924847,111940.0,111930.0,0.3475]
[1760266265260,0.24319936,111950.0,111930.0,0.3475]
[1760266265462,0.17866714,111940.0,111930.0,0.3475]
[1760266265667,0.18416271,111940.0,111930.0,0.3475]
[1760266269596,0.18416271,111940.0,111930.0,0.5261831]
[1760266270355,0.18416271,111940.0,111930.0,0.3475]
[1760266271071,0.17866714,111940.0,111930.0,0.3475]
[1760266274289,0.21636512,111950.0,111930.0,0.3475]
[1760266274487,0.25532714,111940.0,111930.0,0.31099]
[1760266274737,0.25532714,111940.0,111930.0,0.2687]
[1760266280439,0.26369301,111940.0,111930.0,0.2687]
[1760266283379,0.26369301,111940.0,111930.0,0.29416]
[1760266283561,0.26369301,111940.0,111930.0,0.2687]
[1760266284182,0.25532714,111940.0,111930.0,0.2687]
[1760266284750,0.25532714,111940.0,111920.0,0.00095752]
[1760266284751,1.562157,111930.0,111920.0,0.00095752]
[1760266284952,4.17413765,111930.0,111920.0,0.00095752]
[1760266285155,0.69668321,111930.0,111920.0,0.00095752]
[1760266285335,4.26005321,111930.0,111920.0,0.00095752]
[1760266285564,0.69668321,111930.0,111920.0,0.00095752]
[1760266285749,4.26005321,111930.0,111920.0,0.00095752]
[1760266285948,4.26003229,111930.0,111920.0,0.00095752]
[1760266286374,0.69666229,111930.0,111920.0,0.00095752]
[1760266286587,4.26003229,111930.0,111920.0,0.00095752]
[1760266287363,0.69666229,111930.0,111920.0,0.00095752]
[1760266287558,4.26003229,111930.0,111920.0,0.00095752]
[1760266287974,0.69666229,111930.0,111920.0,0.00095752]
[1760266288174,4.26003229,111930.0,111920.0,0.00095752]
[1760266289213,4.2433241,111930.0,111920.0,0.00095752]
[1760266289421,4.23495952,111930.0,111920.0,0.00095752]
[1760266302256,4.34869671,111930.0,111920.0,0.00095752]
[1760266302465,4.37266861,111930.0,111920.0,0.00095752]
[1760266302910,4.28394927,111930.0,111920.0,0.00095752]
[1760266303311,0.72057927,111930.0,111920.0,0.00095752]
[1760266303524,4.28394927,111930.0,111920.0,0.00095752]
[1760266303731,4.25997737,111930.0,111920.0,0.00095752]
[1760266303951,4.2432988,111930.0,111920.0,0.00095752]
[1760266304399,4.25998031,111930.0,111920.0,0.00095752]
[1760266305033,0.69661031,111930.0,111920.0,0.00095752]
[1760266305461,4.25998031,111930.0,111920.0,0.00095752]
[1760266306501,4.23495952,111930.0,111920.0,0.00095752]
[1760266307772,4.24330319,111930.0,111920.0,0.00095752]
[1760266308195,4.33202253,111930.0,111920.0,0.00095752]
[1760266308638,4.24330319,111930.0,111920.0,0.00095752]
[1760266310198,4.26000046,111930.0,111920.0,0.00095752]
[1760266310884,4.24330319,111930.0,111920.0,0.00095752]
[1760266311322,4.26000454,111930.0,111920.0,0.00095752]
[1760266313134,4.28397644,111930.0,111920.0,0.00095752]
[1760266316170,4.24079558,111930.0,111920.0,0.00095752]
[1760266317181,0.69062203,111930.0,111920.0,0.00095752]
[1760266317514,0.6713561,111930.0,111920.0,0.00095752]
[1760266317714,0.64727368,111930.0,111920.0,0.00095752]
[1760266319444,0.66653604,111930.0,111920.0,0.00095752]
[1760266321495,0.69061399,111930.0,111920.0,0.00095752]
[1760266326303,0.66653604,111930.0,111920.0,0.00095752]
[1760266326730,0.66653604,111930.0,111920.0,0.25995659]
[1760266326731,0.01926236,111930.0,111920.0,0.25995659]
[1760266326968,0.34,111940.0,111930.0,0.1786831]
[1760266327184,0.51866714,111940.0,111930.0,0.082]
[1760266327392,0.5379295,111940.0,111930.0,0.082]
[1760266327605,0.5379295,111940.0,111930.0,0.2606831]
[1760266327817,0.5379295,111940.0,111930.0,0.082]
[1760266328561,0.51866714,111940.0,111930.0,0.082]
[1760266329489,0.17866714,111940.0,111930.0,0.27855141]
[1760266329722,0.17866714,111940.0,111930.0,0.2606831]
[1760266330356,0.04490977,111950.0,111930.0,0.2606831]
[1760266330568,0.00014995,111950.0,111940.0,0.21552385]
[1760266330778,0.00014995,111950.0,111940.0,0.26066714]
[1760266336175,0.0007312,111950.0,111940.0,0.26066714]
[1760266338491,0.0007312,111950.0,111940.0,0.52936714]
[1760266340018,0.21442851,111970.0,111950.0,0.17865118]
[1760266340225,0.23941825,111970.0,111960.0,0.04395]
[1760266342400,0.58773717,111970.0,111960.0,0.04395]
[1760266344133,0.58773717,111970.0,111960.0,0.082]
[1760266344335,0.22086221,111970.0,111960.0,0.082]
[1760266344670,0.19637221,111970.0,111960.0,0.082]
[1760266345324,0.19637221,111970.0,111960.0,0.26063522]
[1760266345791,0.19637221,111970.0,111960.0,0.082]
[1760266346232,0.19753446,111970.0,111960.0,0.082]
[1760266349780,0.0028435,111970.0,111960.0,0.082]
[1760266349954,0.17978484,111970.0,111960.0,0.082]
[1760266350100,0.1887158,111970.0,111960.0,0.082]
[1760266351978,0.28881386,111980.0,111960.0,0.082]
[1760266352190,0.17862259,111970.0,111960.0,0.082]
[1760266353041,0.18755355,111970.0,111960.0,0.082]
[1760266355268,0.20421548,111970.0,111960.0,0.082]
[1760266355835,0.23108784,111970.0,111960.0,0.082]
[1760266356123,0.21442591,111970.0,111960.0,0.082]
[1760266356532,0.2310996,111970.0,111960.0,0.082]
[1760266359285,0.2502634,111970.0,111960.0,0.082]
[1760266361159,0.03352052,111970.0,111960.0,0.082]
[1760266361463,0.21214311,111970.0,111960.0,0.082]
[1760266361657,0.22049725,111970.0,111960.0,0.082]
[1760266362103,0.22942821,111970.0,111960.0,0.082]
[1760266363058,0.22942821,111970.0,111960.0,0.26063522]
[1760266363882,0.22942821,111970.0,111960.0,0.082]
[1760266365677,0.22942821,111970.0,111960.0,0.26063522]
[1760266366381,0.22942821,111970.0,111960.0,0.082]
[1760266367090,0.25481821,111970.0,111960.0,0.082]
[1760266368119,0.25481821,111970.0,111960.0,0.04395]
[1760266368535,0.17863522,111960.0,111950.0,0.05655]
[1760266368737,0.21237936,111960.0,111950.0,0.26184118]
[1760266369156,0.21237936,111960.0,111950.0,0.30241118]
[1760266370178,0.18698936,111960.0,111950.0,0.30241118]
[1760266370956,0.24259936,111960.0,111950.0,0.03756]
[1760266371157,3.82513316,111960.0,111950.0,0.03756]
[1760266371342,3.81886791,111960.0,111950.0,0.0642]
[1760266371550,3.81886791,111960.0,111950.0,0.03756]
[1760266372553,3.63496477,111960.0,111950.0,0.03756]
[1760266372789,3.81359999,111960.0,111950.0,0.03756]
[1760266373200,3.83030852,111960.0,111950.0,0.03756]
[1760266373829,4.17030852,111960.0,111950.0,0.03756]
[1760266374080,4.20046042,111960.0,111950.0,0.03756]
[1760266374272,4.22733851,111960.0,111950.0,0.03909832]
[1760266378436,4.21062998,111960.0,111950.0,0.03909832]
[1760266381789,4.21062998,111960.0,111950.0,0.00153832]
[1760266382185,4.22731432,111960.0,111950.0,0.00153832]
[1760266382434,4.25126907,111960.0,111950.0,0.00153832]
[1760266382565,0.720003,111960.0,111950.0,0.00153832]
[1760266382766,4.283373,111960.0,111950.0,0.00153832]
[1760266383605,0.720003,111960.0,111950.0,0.00153832]
[1760266383815,4.25126907,111960.0,111950.0,0.00153832]
[1760266384420,0.68789907,111960.0,111950.0,0.00153832]
[1760266384634,4.25960183,111960.0,111950.0,0.00153832]
[1760266385042,4.29170576,111960.0,111950.0,0.00153832]
[1760266385237,0.69623183,111960.0,111950.0,0.00153832]
[1760266385440,4.34832117,111960.0,111950.0,0.00153832]
[1760266385643,4.35647035,111960.0,111950.0,0.00153832]
[1760266385816,4.26775101,111960.0,111950.0,0.00153832]
[1760266386573,0.70438101,111960.0,111950.0,0.00153832]
[1760266386915,4.26775101,111960.0,111950.0,0.00153832]
[1760266389249,4.29172603,111960.0,111950.0,0.00153832]
[1760266390630,4.38044537,111960.0,111950.0,1e-08]
[1760266390848,4.26775101,111960.0,111950.0,1e-08]
[1760266391904,4.31590691,111960.0,111950.0,1e-08]
[1760266395341,4.31589571,111960.0,111950.0,1e-08]
[1760266396192,4.0580852,111960.0,111950.0,1e-08]
[1760266396465,4.09003896,111960.0,111950.0,1e-08]
[1760266401876,4.19496044,111960.0,111950.0,1e-08]
[1760266405481,4.19596044,111960.0,111950.0,1e-08]
[1760266405721,4.1072411,111960.0,111950.0,1e-08]
[1760266406375,0.17869907,111920.0,111910.0,0.2687]
[1760266406652,0.17869907,111920.0,111910.0,0.29359]
[1760266407083,0.17869907,111920.0,111910.0,0.29591582]
[1760266407531,0.19546321,111920.0,111910.0,0.29591582]
[1760266408312,0.20380241,111920.0,111910.0,0.29591582]
[1760266409142,0.20380241,111920.0,111910.0,0.31545582]
[1760266410835,0.20380241,111920.0,111910.0,0.53388085]
[1760266411330,0.20380241,111920.0,111910.0,0.35516582]
[1760266411569,0.20380241,111920.0,111910.0,0.53388085]
[1760266411801,0.2038302,111920.0,111910.0,0.53388085]
[1760266412255,0.2038302,111920.0,111910.0,0.35516582]
[1760266413964,0.2038302,111920.0,111910.0,0.31545582]
[1760266414197,0.22303763,111920.0,111910.0,0.31545582]
[1760266414611,0.22305665,111920.0,111910.0,0.31545582]
[1760266415766,0.24994091,111920.0,111910.0,0.31545582]
[1760266419167,0.24994091,111920.0,111910.0,0.35582582]
[1760266419392,0.24994091,111920.0,111910.0,0.31545582]
[1760266423139,0.24994091,111920.0,111910.0,0.27102582]
[1760266424393,0.23071446,111920.0,111910.0,0.27102582]
[1760266425011,0.24994091,111920.0,111910.0,0.27102582]
[1760266425350,0.23071446,111920.0,111910.0,0.27102582]
[1760266426336,0.20567247,111920.0,111910.0,0.27102582]
[1760266430485,0.20567247,111920.0,111910.0,0.29781582]
[1760266431226,0.20567247,111920.0,111910.0,0.53475085]
[1760266431598,0.20567247,111920.0,111910.0,0.35603582]
[1760266432654,0.20567247,111920.0,111910.0,0.26605085]
[1760266435092,0.00230413,111920.0,111910.0,0.26605085]
[1760266435290,0.17869907,111920.0,111910.0,0.26605085]
[1760266439676,0.17869907,111920.0,111910.0,0.53475085]
[1760266441640,0.17869907,111920.0,111910.0,0.35603582]
[1760266442720,0.17869907,111920.0,111910.0,0.31772582]
[1760266442947,0.17869907,111920.0,111910.0,0.27102582]
[1760266444017,0.17869907,111920.0,111910.0,0.31772582]
[1760266444227,0.17869907,111920.0,111910.0,0.35603582]
[1760266446732,0.17869907,111920.0,111910.0,0.53475085]
[1760266451464,0.17869907,111920.0,111910.0,0.35603582]
[1760266451643,0.17869907,111920.0,111910.0,0.53475085]
[1760266451848,0.17869907,111920.0,111910.0,0.31772582]
[1760266452111,0.17869907,111920.0,111910.0,0.00232582]
[1760266452546,4.08206907,111920.0,111910.0,0.00232582]
[1760266452756,4.12637456,111920.0,111910.0,0.00232582]
[1760266452966,0.58989161,111920.0,111910.0,0.00232582]
[1760266453174,4.15326161,111920.0,111910.0,0.00232582]
[1760266454705,4.13375651,111920.0,111910.0,0.00232582]
[1760266456110,0.54531914,111920.0,111910.0,0.08756582]
[1760266456538,0.22482424,111920.0,111910.0,0.08756582]
[1760266456752,0.17869907,111920.0,111910.0,0.08756582]
[1760266462981,0.18328289,111930.0,111910.0,0.08756582]
[1760266463185,0.17869907,111920.0,111910.0,0.08573974]
[1760266474975,0.20557006,111930.0,111910.0,0.28232627]
[1760266475186,0.17869907,111920.0,111910.0,0.22542477]
[1760266475436,0.20557006,111930.0,111910.0,0.22542477]
[1760266475642,0.54557006,111930.0,111920.0,0.0194]
[1760266475852,0.56482387,111930.0,111920.0,0.06017421]
[1760266476268,0.56482387,111930.0,111920.0,0.08698421]
[1760266478326,4.12819387,111930.0,111920.0,0.00174421]
[1760266478490,4.13654745,111930.0,111920.0,0.00174421]
[1760266479522,4.12819387,111930.0,111920.0,0.02896421]
[1760266480009,4.12819387,111930.0,111920.0,0.04853421]
[1760266480215,4.13654761,111930.0,111920.0,0.04853421]
[1760266484302,4.1532624,111930.0,111920.0,0.04853421]
[1760266484698,3.8132624,111930.0,111920.0,0.04853421]
[1760266484864,0.02406727,111950.0,111920.0,0.26602328]
[1760266485066,0.17865118,111950.0,111940.0,0.01946]
[1760266485429,0.17865118,111950.0,111940.0,0.08428]